bitfinex-derivatives/quotes_SOLF0:USTF0_20241218
["timestamp","ask_amount","ask_price","bid_price","bid_amount"]
[1734525435383,2.3099,216.49,216.44,11.27757966]
[1734525435783,2.4,216.55,216.44,11.27757966]
[1734525435985,2.3098,216.51,216.45,2.3103]
[1734525436593,2.3095,216.53,216.46,2.3101]
[1734525436794,2.3095,216.53,216.41,23.51989176]
[1734525436995,2.4,216.54,216.41,23.51989176]
[1734525437393,2.4,216.54,216.45,18.03549926]
[1734525437594,2.4,216.54,216.45,20.43549926]
[1734525437895,2.4,216.54,216.49,2.3098]
[1734525438190,2.4,216.54,216.45,20.43549926]
[1734525438191,4.7094,216.54,216.45,20.43549926]
[1734525438394,2.3094,216.54,216.49,2.3099]
[1734525438993,2.3095,216.53,216.47,2.31]
[1734525439493,2.3095,216.53,216.48,2.31]
[1734525439689,2.3092,216.56,216.45,20.43549926]
[1734525439888,2.4,216.57,216.45,20.43549926]
[1734525440085,2.4,216.58,216.45,20.43549926]
[1734525440385,18.03549926,216.63,216.45,20.43549926]
[1734525440693,2.3089,216.58,216.45,20.43549926]
[1734525441394,2.3089,216.58,216.52,2.3095]
[1734525441695,2.3089,216.58,216.45,20.43549926]
[1734525441994,2.3088,216.59,216.54,2.3093]
[1734525442890,2.4,216.61,216.51,1.7268]
[1734525443091,2.4,216.61,216.46,1.6001]
[1734525443394,2.4,216.61,216.46,3.3269]
[1734525443591,2.3092,216.56,216.51,2.3096]
[1734525443896,2.4,216.61,216.51,2.3096]
[1734525444395,2.4,216.61,216.49,2.3098]
[1734525444586,2.4,216.61,216.46,3.3269]
[1734525444790,2.3093,216.55,216.46,3.3269]
[1734525444986,2.4,216.55,216.46,3.3269]
[1734525445393,2.3097,216.51,216.46,3.3269]
[1734525445594,2.3097,216.51,216.46,5.637]
[1734525447094,2.31,216.48,216.44,2.3104]
[1734525447398,2.4,216.5,216.42,1.7501]
[1734525447589,2.3102,216.46,216.42,1.7501]
[1734525447897,2.4,216.49,216.42,1.7501]
[1734525448398,4.7099,216.49,216.45,2.3103]
[1734525448898,2.31,216.48,216.44,2.3104]
[1734525449192,2.4,216.49,216.42,1.7501]
[1734525449399,2.3104,216.45,216.4,2.3108]
[1734525449789,2.4,216.49,216.4,7.87268342]
[1734525449994,2.4,216.49,216.4,5.56188342]
[1734525450593,2.4,216.49,216.36,2.3112]
[1734525450793,2.4,216.49,216.37,5.45357784]
[1734525451193,2.4,216.49,216.35,1.596]
[1734525451398,3.5026,216.48,216.34,3.2553]
[1734525451701,18.03549926,216.43,216.33,0.1883]
[1734525451892,2.4,216.42,216.33,0.1883]
[1734525452595,4.1383,216.42,216.33,0.1883]
[1734525452802,2.3115,216.34,216.33,0.1883]
[1734525452994,2.3115,216.34,216.26,1.724]
[1734525452995,2.4,216.34,216.26,1.724]
[1734525453394,2.4,216.33,216.21,18.03549926]
[1734525453701,2.4,216.32,216.24,5.64367254]
[1734525453893,2.38,216.31,216.24,5.64367254]
[1734525454093,2.38,216.31,216.21,1.724]
[1734525454094,2.38,216.3,216.2,3.2497]
[1734525454295,18.03549926,216.33,216.2,3.2497]
[1734525454296,2.38,216.29,216.2,3.2497]
[1734525454699,2.3127,216.23,216.2,8.918907]
[1734525455000,2.38,216.29,216.17,18.03549926]
[1734525455506,2.38,216.29,216.14,2.38]
[1734525455703,2.38,216.29,216.15,5.48880044]
[1734525455999,2.3125,216.25,216.15,5.48880044]
[1734525456204,2.38,216.24,216.15,5.48880044]
[1734525456608,2.3129,216.21,216.16,2.3133]
[1734525456800,2.38,216.24,216.15,5.48880044]
[1734525457803,2.3128,216.22,216.16,2.3133]
[1734525458105,2.38,216.24,216.15,5.48880044]
[1734525458503,2.38,216.24,216.13,18.03549926]
[1734525458907,2.313,216.2,216.14,2.3135]
[1734525459907,2.3131,216.19,216.13,18.03549926]
[1734525460103,2.38,216.24,216.09,20.41549926]
[1734525460610,2.38,216.24,216.12,2.3138]
[1734525460805,2.38,216.24,216.12,5.65902567]
[1734525461106,2.3132,216.18,216.08,18.03549926]
[1734525461304,2.3132,216.18,216.09,1.7319]
[1734525462010,2.38,216.19,216.11,5.61292702]
[1734525462309,1.7033,216.3,216.12,20.41549926]
[1734525462511,2.3123,216.27,216.2,2.3129]
[1734525462808,2.38,216.29,216.16,18.03549926]
[1734525463009,2.38,216.29,216.2,2.3129]
[1734525463211,5.44716815,216.34,216.21,1.7319]
[1734525463504,2.38,216.33,216.18,2.38]
[1734525463706,2.3124,216.26,216.18,2.38]
[1734525463902,2.38,216.26,216.18,2.38]
[1734525464108,2.38,216.3,216.24,2.3125]
[1734525464310,2.312,216.29,216.18,13.67796452]
[1734525464505,2.38,216.3,216.18,2.38]
[1734525464705,2.38,216.3,216.21,2.3128]
[1734525465010,2.38,216.3,216.18,2.38]
[1734525465605,2.3121,216.28,216.18,2.38]
[1734525466007,2.38,216.3,216.21,2.3129]
[1734525466212,2.38,216.3,216.18,2.38]
[1734525466606,2.3122,216.27,216.2,2.313]
[1734525466807,2.38,216.3,216.2,2.313]
[1734525467205,2.3124,216.26,216.2,2.313]
[1734525467409,2.3124,216.26,216.21,2.3129]
[1734525467612,2.38,216.25,216.15,18.07705841]
[1734525467814,4.6925,216.25,216.19,2.313]
[1734525468004,2.38,216.25,216.15,18.07705841]
[1734525468711,2.38,216.25,216.22,2.3128]
[1734525469107,2.38,216.25,216.21,2.3128]
[1734525470415,2.38,216.25,216.15,18.07705841]
[1734525470818,4.6925,216.25,216.15,18.07705841]
[1734525471014,4.6925,216.25,216.19,2.313]
[1734525471320,2.38,216.25,216.15,18.07705841]
[1734525471514,2.38,216.29,216.15,18.07705841]
[1734525472219,2.38,216.29,216.2,2.313]
[1734525472408,2.38,216.29,216.15,18.07705841]
[1734525472813,2.38,216.29,216.17,2.3133]
[1734525473013,2.38,216.29,216.15,18.07705841]
[1734525473414,2.38,216.29,216.13,3.3005]
[1734525474117,2.3129,216.21,216.16,2.3134]
[1734525475116,2.3129,216.21,216.13,3.3005]
[1734525475117,2.38,216.22,216.13,3.3005]
[1734525475617,2.38,216.26,216.15,18.07705841]
[1734525476015,1.5973,216.33,216.16,2.38]
[1734525476213,2.38,216.32,216.16,2.38]
[1734525477213,2.3123,216.27,216.16,2.38]
[1734525477422,2.38,216.29,216.16,2.38]
[1734525477617,4.6918,216.32,216.26,2.3122]
[1734525477918,2.38,216.32,216.21,2.38]
[1734525478312,4.6918,216.32,216.22,1.5798]
[1734525478712,4.6918,216.32,216.23,3.3137]
[1734525478921,4.6918,216.32,216.25,2.3124]
[1734525479121,4.6918,216.32,216.23,3.3137]
[1734525479417,2.38,216.32,216.04,6.944]
[1734525479622,2.38,216.32,216.14,18.07705841]
[1734525480825,2.3123,216.27,216.22,2.3127]
[1734525481225,2.38,216.27,216.17,2.38]
[1734525481416,2.3127,216.23,216.18,2.3131]
[1734525481924,2.3127,216.23,216.17,2.38]
[1734525481925,2.3127,216.23,216.19,2.3131]
[1734525482125,2.3125,216.25,216.17,2.38]
[1734525482325,1.5781,216.33,216.17,2.38]
[1734525482526,1.6494,216.35,216.18,18.07705841]
[1734525482527,2.38,216.32,216.18,18.07705841]
[1734525483526,2.38,216.35,216.3,2.3119]
[1734525483720,18.07705841,216.41,216.23,5.6341]
[1734525483925,2.3112,216.37,216.26,18.07705841]
[1734525484326,2.38,216.4,216.26,18.07705841]
[1734525484525,1.6538,216.44,216.3,18.07705841]
[1734525484826,2.38,216.44,216.39,2.3109]
[1734525485032,2.3102,216.46,216.34,20.45705841]
[1734525485230,2.38,216.47,216.35,4.9617]
[1734525485428,2.38,216.47,216.39,2.3109]
[1734525485628,2.38,216.47,216.35,4.9617]
[1734525485831,2.38,216.47,216.4,2.3108]
[1734525486135,2.38,216.47,216.38,18.07705841]
[1734525487235,2.38,216.47,216.42,2.3105]
[1734525487435,2.38,216.47,216.38,18.07705841]
[1734525487632,4.6901,216.47,216.38,18.07705841]
[1734525488539,2.38,216.47,216.35,4.9617]
[1734525489733,2.38,216.46,216.35,4.9617]
[1734525489935,2.38,216.46,216.36,2.3112]
[1734525490333,2.38,216.46,216.35,4.9617]
[1734525490529,2.38,216.46,216.12,33.02390378]
[1734525490830,2.38,216.46,216.28,18.07705841]
[1734525491034,2.38,216.46,216.28,20.45705841]
[1734525491333,2.3112,216.37,216.28,18.07705841]
[1734525491638,2.38,216.39,216.24,20.45705841]
[1734525491840,2.38,216.38,216.24,20.45705841]
[1734525492035,2.38,216.37,216.24,20.45705841]
[1734525492428,2.38,216.37,216.2,18.07705841]
[1734525492631,20.45705841,216.37,216.19,4.9311]
[1734525493239,20.45705841,216.37,216.22,5.61758297]
[1734525493633,2.312,216.3,216.24,2.3125]
[1734525494441,2.312,216.3,216.25,2.3124]
[1734525494737,2.38,216.32,216.22,7.99758297]
[1734525494937,2.38,216.32,216.26,2.3123]
[1734525495132,2.3119,216.3,216.22,7.99758297]
[1734525495339,2.38,216.32,216.22,7.99758297]
[1734525496140,2.38,216.32,216.25,2.3124]
[1734525496735,2.3119,216.31,216.25,2.3124]
[1734525497035,18.07705841,216.37,216.22,7.99758297]
[1734525497244,2.3116,216.34,216.24,18.07705841]
[1734525497444,2.38,216.36,216.24,18.07705841]
[1734525497638,2.38,216.36,216.28,2.312]
[1734525497839,2.3115,216.34,216.28,2.312]
[1734525498039,2.38,216.36,216.28,2.312]
[1734525499144,2.38,216.36,216.22,7.99758297]
[1734525499747,2.38,216.36,216.25,2.3124]
[1734525501047,2.38,216.36,216.23,2.3126]
[1734525501246,2.38,216.36,216.19,4.9311]
[1734525501643,2.3126,216.24,216.2,2.313]
[1734525502548,4.6924,216.26,216.21,2.3129]
[1734525502847,2.38,216.26,216.19,10.47250723]
[1734525503146,2.38,216.3,216.24,2.3125]
[1734525503847,2.38,216.3,216.19,28.54956564]
[1734525504047,2.38,216.3,216.2,2.38]
[1734525504351,4.6919,216.3,216.25,2.3123]
[1734525504647,2.38,216.3,216.2,2.38]
[1734525504844,2.3121,216.29,216.24,2.3125]
[1734525505251,2.38,216.3,216.24,2.3125]
[1734525505549,2.38,216.3,216.23,2.3126]
[1734525505844,2.38,216.3,216.19,28.54956564]
[1734525505845,2.3123,216.27,216.19,30.92956564]
[1734525506146,2.3123,216.27,216.2,11.29618177]
[1734525506348,2.3123,216.27,216.22,2.3126]
[1734525506940,2.3123,216.27,216.23,2.3126]
[1734525507147,2.3122,216.27,216.2,11.29618177]
[1734525507447,2.38,216.3,216.22,2.3127]
[1734525507747,2.3122,216.27,216.22,2.3127]
[1734525508146,2.38,216.3,216.2,11.29618177]
[1734525508345,2.3126,216.24,216.2,11.29618177]
[1734525508646,2.38,216.3,216.2,11.29618177]
[1734525509048,2.3123,216.27,216.2,11.29618177]
[1734525509347,2.38,216.3,216.2,11.29618177]
[1734525509348,2.38,216.3,216.22,2.3127]
[1734525509546,2.38,216.3,216.2,11.29618177]
[1734525509547,2.3122,216.27,216.2,11.29618177]
[1734525509949,2.3122,216.27,216.22,2.3127]
[1734525510460,2.312,216.3,216.23,11.29618177]
[1734525510648,2.38,216.31,216.23,11.29618177]
[1734525510845,2.38,216.33,216.23,11.29618177]
[1734525511748,2.3119,216.3,216.26,2.3122]
[1734525511944,2.38,216.33,216.23,11.29618177]
[1734525512142,2.3113,216.36,216.32,2.3116]
[1734525512341,2.38,216.38,216.3,3.4782]
[1734525512543,2.38,216.38,216.3,5.1908]
[1734525512747,4.6911,216.38,216.33,2.3115]
[1734525512952,2.38,216.41,216.32,11.29618177]
[1734525513343,2.3111,216.38,216.33,2.3116]
[1734525513950,2.3112,216.37,216.33,2.3116]
[1734525514151,2.38,216.41,216.32,2.3117]
[1734525514552,2.3113,216.36,216.32,2.3117]
[1734525514744,2.38,216.41,216.32,2.3117]
[1734525515548,2.38,216.41,216.31,11.29618177]
[1734525516152,61.32702179,216.52,216.37,11.29618177]
[1734525516449,2.38,216.51,216.37,11.29618177]
[1734525516750,2.38,216.51,216.37,13.67618177]
[1734525517152,2.38,216.51,216.4,11.29618177]
[1734525517349,2.38,216.51,216.41,4.965]
[1734525517551,52.41084002,216.52,216.41,4.965]
[1734525518743,52.41084002,216.52,216.41,7.2757]
[1734525518942,52.41084002,216.52,216.41,4.965]
[1734525519143,2.3104,216.44,216.41,1.7085]
[1734525519449,2.3104,216.44,216.37,2.38]
[1734525519650,2.3102,216.46,216.41,2.3107]
[1734525519953,2.3102,216.46,216.37,2.38]
[1734525520145,2.38,216.47,216.36,22.90364389]
[1734525520459,2.3107,216.42,216.37,2.3111]
[1734525521255,2.38,216.47,216.35,5.53048134]
[1734525521456,2.38,216.46,216.35,5.53048134]
[1734525521652,2.38,216.46,216.34,2.3114]
[1734525522056,2.38,216.46,216.3,2.38]
[1734525522657,2.3107,216.42,216.34,5.4848519]
[1734525522958,2.38,216.46,216.34,5.4848519]
[1734525523357,2.38,216.46,216.35,2.3113]
[1734525523656,2.38,216.46,216.34,5.4848519]
[1734525524158,2.38,216.47,216.35,20.41724389]
[1734525524459,2.3103,216.45,216.4,2.3107]
[1734525524864,2.3104,216.44,216.4,2.3107]
[1734525525261,2.3104,216.44,216.37,3.3155]
[1734525525262,2.38,216.47,216.39,2.3109]
[1734525526352,2.38,216.47,216.36,1.7021]
[1734525526559,2.38,216.47,216.34,5.4848519]
[1734525527153,2.311,216.39,216.34,5.4848519]
[1734525527860,2.38,216.42,216.34,5.4848519]
[1734525528256,2.38,216.47,216.35,18.03724389]
[1734525528453,2.3099,216.49,216.39,18.03724389]
[1734525528657,2.3099,216.49,216.4,3.2927]
[1734525529757,50.03084002,216.52,216.41,2.38]
[1734525529958,2.3097,216.51,216.41,2.38]
[1734525530164,52.41084002,216.52,216.41,2.38]
[1734525530462,2.3098,216.5,216.41,2.38]
[1734525530958,52.41084002,216.52,216.41,2.38]
[1734525532155,2.3101,216.48,216.43,2.3104]
[1734525532356,52.41084002,216.52,216.4,3.2927]
[1734525532758,2.3106,216.42,216.4,3.2927]
[1734525532963,2.38,216.46,216.36,4.0405]
[1734525533360,2.3108,216.41,216.36,3.9717]
[1734525533566,2.3108,216.41,216.36,1.6605]
[1734525533768,2.38,216.46,216.36,1.6605]
[1734525533968,2.311,216.39,216.34,10.1762519]
[1734525534164,2.311,216.39,216.34,7.8648519]
[1734525534864,2.3111,216.38,216.34,5.4848519]
[1734525535059,2.3111,216.38,216.31,18.03724389]
[1734525535266,2.38,216.4,216.31,18.03724389]
[1734525535766,2.3111,216.38,216.33,7.90233133]
[1734525536165,2.3114,216.36,216.32,2.3117]
[1734525537267,2.3116,216.33,216.29,2.3119]
[1734525537471,2.38,216.4,216.29,5.47319971]
[1734525538174,2.38,216.4,216.31,18.03724389]
[1734525539471,4.6908,216.4,216.31,18.03724389]
[1734525539972,2.38,216.4,216.34,11.28193688]
[1734525540164,2.3109,216.39,216.35,2.3113]
[1734525540367,2.38,216.4,216.34,11.28193688]
[1734525540563,2.38,216.44,216.34,11.28193688]
[1734525540769,11.28193688,216.48,216.34,11.28193688]
[1734525540973,3.3384,216.5,216.3,2.38]
[1734525540974,2.38,216.47,216.37,11.28193688]
[1734525541773,2.38,216.46,216.37,11.28193688]
[1734525542075,2.38,216.46,216.38,2.311]
[1734525542473,2.38,216.46,216.35,2.38]
[1734525544871,2.3108,216.41,216.37,2.3111]
[1734525546173,2.3109,216.4,216.37,2.3111]
[1734525546367,11.28193688,216.48,216.34,11.28193688]
[1734525546565,11.28193688,216.45,216.31,11.28193688]
[1734525546766,2.3113,216.36,216.31,11.28193688]
[1734525546970,2.3113,216.36,216.29,7.83319971]
[1734525546971,2.36,216.39,216.29,5.47319971]
[1734525547171,2.36,216.38,216.29,5.47319971]
[1734525547373,2.3115,216.34,216.3,2.3118]
[1734525547774,2.36,216.38,216.29,5.47319971]
[1734525547979,2.3112,216.37,216.31,2.3117]
[1734525548180,2.36,216.38,216.29,5.47319971]
[1734525548878,2.36,216.38,216.31,2.3118]
[1734525549075,2.36,216.38,216.29,5.47319971]
[1734525549772,2.36,216.38,216.26,11.28193688]
[1734525550278,2.36,216.38,216.27,2.3122]
[1734525550476,1.6978,216.37,216.25,5.43617063]
[1734525550676,11.28193688,216.36,216.23,11.28193688]
[1734525551384,11.28193688,216.36,216.26,2.3123]
[1734525551587,2.36,216.38,216.26,11.28193688]
[1734525551780,2.3113,216.36,216.27,2.36]
[1734525551985,2.36,216.38,216.29,11.28193688]
[1734525552184,2.36,216.4,216.32,11.28193688]
[1734525552384,2.3107,216.41,216.32,11.28193688]
[1734525552684,2.36,216.42,216.32,13.64193688]
[1734525553078,2.36,216.41,216.32,13.64193688]
[1734525553485,2.3109,216.4,216.34,2.3114]
[1734525553686,2.36,216.41,216.32,13.64193688]
[1734525553882,5.46462892,216.46,216.32,13.64193688]
[1734525554084,2.36,216.45,216.32,13.64193688]
[1734525554285,2.3106,216.42,216.32,13.64193688]
[1734525554888,2.3108,216.41,216.36,2.3112]
[1734525555489,2.3108,216.41,216.37,2.3111]
[1734525556889,2.3109,216.4,216.35,2.3113]
[1734525557091,2.36,216.45,216.35,2.3113]
[1734525557295,11.28193688,216.44,216.32,11.28193688]
[1734525557789,11.28193688,216.44,216.34,2.3115]
[1734525557790,2.3108,216.41,216.34,2.3115]
[1734525557995,2.36,216.4,216.32,11.28193688]
[1734525558294,2.3104,216.44,216.4,2.3107]
[1734525558891,2.36,216.45,216.35,11.28193688]
[1734525559094,2.36,216.46,216.42,2.3106]
[1734525559294,2.36,216.46,216.38,11.28193688]
[1734525559591,2.36,216.47,216.38,11.28193688]
[1734525559895,2.3103,216.45,216.41,2.3106]
[1734525560492,2.36,216.47,216.38,11.28193688]
[1734525560689,2.3104,216.44,216.4,2.3108]
[1734525561891,2.3106,216.42,216.38,2.311]
[1734525562693,2.3108,216.41,216.36,2.3112]
[1734525562901,2.36,216.42,216.32,11.28193688]
[1734525563888,2.36,216.42,216.31,2.36]
[1734525564294,2.36,216.42,216.32,11.28193688]
[1734525564695,2.311,216.39,216.35,2.3113]
[1734525564998,51.63834002,216.52,216.38,11.28193688]
[1734525564999,52.39084002,216.52,216.38,11.28193688]
[1734525565200,2.3102,216.47,216.42,2.3106]
[1734525565497,5.63714585,216.51,216.39,5.6946]
[1734525565895,2.36,216.5,216.39,5.6946]
[1734525566092,2.36,216.5,216.41,2.3107]
[1734525566302,2.36,216.5,216.39,5.6946]
[1734525566993,2.3103,216.46,216.39,5.6946]
[1734525567396,2.36,216.5,216.39,3.3346]
[1734525568694,2.36,216.5,216.4,2.3108]
[1734525569300,2.36,216.5,216.39,5.6455]
[1734525569901,2.3106,216.43,216.39,5.6455]
[1734525570298,2.3106,216.43,216.39,3.3346]
[1734525570502,2.3106,216.43,216.4,2.3108]
[1734525571201,2.3106,216.43,216.39,3.3346]
[1734525571396,2.3104,216.45,216.39,3.3346]
[1734525571708,2.3104,216.45,216.39,4.9765]
[1734525572207,2.3104,216.44,216.4,2.3108]
[1734525573003,2.36,216.5,216.4,2.3108]
[1734525574203,2.3105,216.44,216.4,2.3108]
[1734525576208,2.3101,216.47,216.39,9.6074]
[1734525576407,2.36,216.5,216.39,9.6074]
[1734525576600,2.36,216.5,216.39,7.2965]
[1734525576804,2.3101,216.47,216.43,2.3105]
[1734525577001,2.32,216.5,216.41,11.28193688]
[1734525577201,50.03084002,216.52,216.41,11.28193688]
[1734525577404,50.03084002,216.52,216.42,2.3105]
[1734525577405,2.3102,216.46,216.42,2.3105]
[1734525577609,2.3102,216.46,216.41,11.28193688]
[1734525578205,2.3105,216.43,216.4,2.3108]
[1734525578409,50.03084002,216.52,216.39,4.9765]
[1734525578801,2.3104,216.44,216.41,2.3107]
[1734525579009,11.28193688,216.51,216.39,4.9765]
[1734525579403,2.32,216.56,216.44,11.28193688]
[1734525579607,4.9502,216.62,216.47,11.28193688]
[1734525579805,191.34211366,216.63,216.5,11.28193688]
[1734525580110,191.34211366,216.63,216.55,2.3092]
[1734525580408,191.34211366,216.63,216.5,13.60193688]
[1734525581109,11.28193688,216.61,216.48,5.1473]
[1734525582413,2.3096,216.52,216.48,5.1473]
[1734525582711,2.32,216.56,216.48,5.1473]
[1734525583510,2.3097,216.51,216.48,5.1473]
[1734525584309,2.32,216.56,216.45,11.28193688]
[1734525584510,11.28193688,216.55,216.42,11.28193688]
[1734525585103,11.28193688,216.55,216.43,2.3104]
[1734525585104,2.3101,216.48,216.43,2.3104]
[1734525586211,2.3102,216.47,216.43,2.3104]
[1734525587804,2.3102,216.46,216.42,11.28193688]
[1734525589005,11.28193688,216.58,216.42,11.28193688]
[1734525589212,2.32,216.57,216.45,11.28193688]
[1734525589811,2.3097,216.51,216.45,11.28193688]
[1734525590112,2.3097,216.51,216.47,2.3101]
[1734525590911,2.3097,216.51,216.46,2.3102]
[1734525591915,2.3098,216.5,216.46,2.3102]
[1734525592510,2.32,216.57,216.45,11.28193688]
[1734525592915,2.32,216.57,216.41,5.67125045]
[1734525593112,2.32,216.57,216.44,13.59223688]
[1734525593714,2.3099,216.49,216.45,2.3103]
[1734525594312,2.3099,216.49,216.42,2.32]
[1734525594313,7.9216,216.62,216.47,11.28193688]
[1734525594514,2.32,216.61,216.42,2.32]
[1734525594716,2.32,216.61,216.48,11.28193688]
[1734525594912,189.02211366,216.64,216.48,13.60193688]
[1734525595116,191.34211366,216.64,216.54,11.28193688]
[1734525595516,2.32,216.64,216.54,11.28193688]
[1734525595717,2.32,216.64,216.57,11.28193688]
[1734525596315,2.3085,216.63,216.58,2.3088]
[1734525596518,2.32,216.64,216.57,11.28193688]
[1734525596717,49.99524429,216.68,216.57,11.28193688]
[1734525596915,2.32,216.67,216.57,11.28193688]
[1734525598618,2.3087,216.61,216.57,11.28193688]
[1734525598818,2.3087,216.61,216.56,2.3091]
[1734525600017,2.3087,216.61,216.54,11.28193688]
[1734525600018,2.3087,216.61,216.57,2.309]
[1734525601617,2.32,216.67,216.56,5.66302613]
[1734525601919,66.86229722,216.68,216.56,5.66302613]
[1734525601920,2.32,216.66,216.56,5.66302613]
[1734525602617,2.3084,216.63,216.58,2.3089]
[1734525602818,2.32,216.66,216.56,5.66302613]
[1734525603021,2.309,216.58,216.54,2.3093]
[1734525603421,2.28,216.61,216.52,2.28]
[1734525603818,2.28,216.61,216.51,11.28193688]
[1734525604127,2.28,216.61,216.48,11.28193688]
[1734525604420,2.28,216.61,216.49,1.6593]
[1734525604621,1.7227,216.6,216.49,1.6593]
[1734525605519,11.28193688,216.56,216.4,11.28193688]
[1734525605721,3.9796,216.55,216.4,11.28193688]
[1734525605924,5.6658,216.55,216.4,11.28193688]
[1734525606125,2.3101,216.47,216.43,2.3105]
[1734525606320,2.28,216.47,216.4,11.28193688]
[1734525606717,2.28,216.47,216.38,1.7613]
[1734525607024,2.28,216.47,216.36,1.597]
[1734525607220,13.56193688,216.47,216.36,1.597]
[1734525607424,13.56193688,216.47,216.34,13.59333688]
[1734525608422,2.3108,216.4,216.34,13.59333688]
[1734525608920,2.3109,216.39,216.34,11.28193688]
[1734525609123,1.6429,216.49,216.34,5.53901538]
[1734525609422,2.28,216.48,216.39,11.28193688]
[1734525609622,2.28,216.49,216.42,2.3106]
[1734525610324,2.28,216.49,216.44,2.3104]
[1734525610521,14.66773688,216.55,216.44,2.3104]
[1734525610823,11.28193688,216.52,216.41,3.937]
[1734525611025,20.17628035,216.55,216.41,12.90823688]
[1734525611224,2.3097,216.51,216.41,12.90823688]
[1734525611426,2.3097,216.51,216.46,2.3101]
[1734525611620,2.28,216.54,216.44,11.28193688]
[1734525612221,12.92483688,216.57,216.44,11.28193688]
[1734525612422,2.28,216.56,216.45,1.7099]
[1734525612922,2.28,216.55,216.47,11.28193688]
[1734525613324,2.28,216.55,216.52,2.3095]
[1734525613719,2.28,216.58,216.5,11.28193688]
[1734525614122,4.589,216.58,216.53,2.3094]
[1734525614420,4.589,216.58,216.5,11.28193688]
[1734525614421,50.00966225,216.6,216.51,1.7619]
[1734525614624,2.28,216.61,216.52,1.6391]
[1734525615026,2.28,216.61,216.56,2.3091]
[1734525615222,12.88873688,216.68,216.56,11.28193688]
[1734525615426,189.02211366,216.73,216.59,11.28193688]
[1734525615618,2.308,216.67,216.62,2.3085]
[1734525615928,2.28,216.69,216.59,11.28193688]
[1734525616627,2.28,216.69,216.57,1.6918]
[1734525617427,11.28193688,216.67,216.57,1.6918]
[1734525617627,11.28193688,216.67,216.56,5.60373785]
[1734525617927,2.3089,216.58,216.52,1.6391]
[1734525618119,2.28,216.6,216.52,1.6391]
[1734525618324,11.28193688,216.67,216.54,5.50895652]
[1734525618522,2.28,216.66,216.54,5.50895652]
[1734525619727,2.3084,216.63,216.54,7.81825652]
[1734525619924,2.28,216.66,216.54,5.50895652]
[1734525620327,2.28,216.66,216.57,2.309]
[1734525620531,2.28,216.66,216.54,5.50895652]
[1734525620829,2.28,216.66,216.55,2.3091]
[1734525622030,2.28,216.66,216.52,1.6391]
[1734525622220,1.6498,216.65,216.52,1.6391]
[1734525622928,2.3091,216.57,216.52,3.9486]
[1734525623835,2.3091,216.57,216.53,5.58204744]
[1734525624028,2.28,216.59,216.54,2.3093]
[1734525624029,2.3088,216.59,216.54,2.3093]
[1734525624231,2.28,216.61,216.53,5.58204744]
[1734525626130,2.28,216.61,216.57,2.309]
[1734525626733,2.3088,216.59,216.54,2.3093]
[1734525627037,2.28,216.61,216.53,5.58204744]
[1734525627334,2.28,216.61,216.53,7.89144744]
[1734525627938,2.309,216.58,216.53,7.89144744]
[1734525628128,2.28,216.61,216.53,7.89144744]
[1734525628332,2.3091,216.56,216.53,5.58204744]
[1734525629332,2.28,216.61,216.53,5.58204744]
[1734525631336,2.3091,216.57,216.53,5.58204744]
[1734525632736,2.3091,216.56,216.53,5.58204744]
[1734525633933,2.309,216.57,216.53,7.89144744]